fUST/lending_fUST_20240103
["ID","MTS","AMOUNT","RATE_DAILY","PERIOD"]
[309893174,1704211413766,154.90705577,0.00025,30]
[309893177,1704211419848,3206.40190776,0.00025,2]
[309893184,1704211435786,1101.62368808,0.00025,2]
[309893203,1704211499737,162.417089,0.00035616,120]
[309893251,1704211636094,-154.78330338,0.00029382,4]
[309893252,1704211636115,-2.78631492,0.00029383,2]
[309893255,1704211650089,-151.99698846,0.00029383,2]
[309893256,1704211650111,-171.10469175,0.00029396,2]
[309893257,1704211650132,-524.56274088,0.000295,30]
[309893278,1704211747112,-296.15684876,0.000295,30]
[309893279,1704211747134,-1000.0,0.00034546,7]
[309893280,1704211747154,-146.63366473,0.00034547,2]
[309893281,1704211750194,-22.20448927,0.00034547,2]
[309893282,1704211750216,-534.614401,0.00034837,2]
[309893283,1704211750241,-291.3795314,0.00034926,2]
[309893284,1704211750262,-665.1471829,0.00034985,2]
[309893285,1704211750284,-165.15681635,0.00035016,7]
[309893286,1704211750306,-18922.6863264,0.0003504,2]
[309893287,1704211750326,-4374.288562,0.00035116,2]
[309893288,1704211750346,-353.3116885,0.00035376,2]
[309893289,1704211750367,-555.668276,0.00035446,2]
[309893290,1704211750388,-250.0,0.00036,2]
[309893291,1704211750408,-168.838154,0.00036116,2]
[309893292,1704211750428,-536.87697118,0.00036757,2]
[309893471,1704211838705,-18.79130482,0.00036757,2]
[309893472,1704211838715,-154.78330338,0.00037552,5]
[309893473,1704211838725,-230.0045,0.00037553,2]
[309893474,1704211838735,-168.838154,0.00037686,2]
[309893475,1704211838745,-119.61020499,0.00038069,2]
[309893476,1704211838757,-436.05807101,0.00038069,2]
[309893477,1704211838767,-837.10955257,0.0003838,2]
[309893478,1704211838777,-250.0,0.00038543,30]
[309893479,1704211838786,-507.69520902,0.00038887,2]
[309893480,1704211838795,-2980.28051221,0.00038888,14]
[309893481,1704211838807,-5615.13648913,0.00038888,14]
[309893482,1704211838818,-8718.49889605,0.00038888,14]
[309893483,1704211838839,-6864.9420789,0.00038888,14]
[309893484,1704211838850,-336.58645219,0.00038888,14]
[309893485,1704211838863,-13688.22912863,0.00038888,14]
[309893486,1704211838872,-168.838154,0.00039256,2]
[309893487,1704211838882,-555.668276,0.0003938,2]
[309893488,1704211838891,-555.668276,0.00040692,2]
[309893489,1704211838900,-150.0,0.00040986,2]
[309893490,1704211838909,-7283.33809738,0.00041,2]
[309893491,1704211838918,-176.0172748,0.00041096,2]
[309893492,1704211838927,-162.417089,0.00041553,120]
[309893493,1704211838937,-1085.949757,0.000416,24]
[309893494,1704211838946,-622.07843086,0.00041893,15]
[309893495,1704211838956,-350.0,0.00042397,30]
[309893496,1704211838966,-1000.0,0.00043443,7]
[309893497,1704211838975,-150.78889555,0.00043444,4]
[309893498,1704211838985,-2479.19472551,0.00044127,2]
[309893499,1704211838994,-231.41553884,0.00044287,2]
[309893500,1704211839003,-150.31404213,0.00044322,2]
[309893502,1704211839013,-150.78889555,0.00044331,2]
[309893504,1704211839022,-171.10469175,0.00044653,2]
[309893506,1704211839031,-1995.53527019,0.000449,6]
[309893507,1704211839040,-155.0,0.00045462,2]
[309893509,1704211839050,-537.60248195,0.00045995,4]
[309893511,1704211839059,-2869.768289,0.00046,39]
[309893513,1704211839068,-2303.89,0.00046017,3]
[309893514,1704211839078,-1919.9,0.00046017,3]
[309893516,1704211839087,-288.41399439,0.00046026,4]
[309893518,1704211839097,-506.33757295,0.00046027,21]
[309893520,1704211839106,-537.20078607,0.00046027,21]
[309893522,1704211839117,-532.33450474,0.00046027,21]
[309893524,1704211839126,-179.37833342,0.00046027,21]
[309893526,1704211839136,-500.0,0.00046027,21]
[309893528,1704211839146,-500.0,0.00046027,21]
[309893530,1704211839155,-500.0,0.00046027,21]
[309893532,1704211839164,-500.0,0.00046027,21]
[309893533,1704211839174,-500.0,0.00046027,21]
[309893535,1704211839185,-500.0,0.00046027,21]
[309893537,1704211839197,-472.7778492,0.00046027,21]
[309893539,1704211839209,-500.0,0.00046027,21]
[309893541,1704211839220,-530.87353452,0.00046027,21]
[309893543,1704211839232,-500.0,0.00046027,21]
[309893546,1704211839243,-431.14673161,0.00046027,21]
[309893548,1704211839255,-608.77454943,0.00046027,21]
[309893550,1704211839267,-500.0,0.00046027,21]
[309893552,1704211839277,-500.0,0.00046027,21]
[309893554,1704211839287,-500.0,0.00046027,21]
[309893556,1704211839297,-500.0,0.00046027,21]
[309893558,1704211839308,-500.0,0.00046027,21]
[309893561,1704211839319,-207.52026112,0.00046027,21]
[309893563,1704211839331,-500.0,0.00046027,21]
[309893565,1704211839342,-500.0,0.00046027,21]
[309893567,1704211839352,-500.0,0.00046027,21]
[309893569,1704211839364,-500.0,0.00046027,21]
[309893571,1704211839375,-500.0,0.00046027,21]
[309893573,1704211839386,-500.0,0.00046027,21]
[309893576,1704211839396,-500.0,0.00046027,21]
[309893578,1704211839407,-500.0,0.00046027,21]
[309893580,1704211839418,-500.0,0.00046027,21]
[309893582,1704211839428,-500.0,0.00046027,21]
[309893584,1704211839439,-500.0,0.00046027,21]
[309893586,1704211839449,-500.0,0.00046027,21]
[309893588,1704211839460,-500.0,0.00046027,21]
[309893590,1704211839471,-500.0,0.00046027,21]
[309893593,1704211839481,-500.0,0.00046027,21]
[309893595,1704211839491,-500.0,0.00046027,21]
[309893597,1704211839500,-500.0,0.00046027,21]
[309893599,1704211839510,-500.0,0.00046027,21]
[309893601,1704211839521,-500.0,0.00046027,21]
[309893603,1704211839532,-500.0,0.00046027,21]
[309893605,1704211839543,-500.0,0.00046027,21]
[309893607,1704211839553,-2422.96,0.00046027,21]
[309893609,1704211839563,-2422.96,0.00046027,21]
[309893611,1704211839575,-500.0,0.00046027,21]
[309893613,1704211839586,-602.96165454,0.00046027,21]
[309893616,1704211839597,-4352.29,0.00046027,21]
[309893618,1704211839607,-4352.29,0.00046027,21]
[309893620,1704211839619,-323.39290304,0.00046027,21]
[309893622,1704211839629,-500.53480392,0.00046027,21]
[309893624,1704211839639,-500.0,0.00046027,3]
[309893626,1704211839649,-307.01703613,0.00046027,3]
[309893628,1704211839664,-611.03,0.00046027,21]
[309893630,1704211839674,-611.03,0.00046027,21]
[309893632,1704211839685,-611.03,0.00046027,21]
[309893634,1704211839695,-259.25379323,0.00046027,21]
[309893636,1704211839704,-500.0,0.00046027,21]
[309893638,1704211839714,-500.0,0.00046027,21]
[309893640,1704211839723,-500.0,0.00046027,21]
[309893642,1704211839733,-500.0,0.00046027,21]
[309893644,1704211839742,-500.0,0.00046027,21]
[309893647,1704211839754,-500.0,0.00046027,21]
[309893649,1704211839765,-500.0,0.00046027,21]
[309893651,1704211839775,-500.0,0.00046027,21]
[309893653,1704211839786,-500.0,0.00046027,21]
[309893655,1704211839796,-1735.16,0.00046027,21]
[309893657,1704211839806,-1735.16,0.00046027,21]
[309893659,1704211839818,-1735.16,0.00046027,21]
[309893661,1704211839828,-500.0,0.00046027,21]
[309893663,1704211839839,-500.0,0.00046027,21]
[309893665,1704211839849,-500.0,0.00046027,21]
[309893667,1704211839859,-500.0,0.00046027,21]
[309893669,1704211839869,-500.0,0.00046027,21]
[309893671,1704211839879,-500.0,0.00046027,21]
[309893673,1704211839889,-541.77384001,0.00046027,21]
[309893675,1704211839899,-644.39,0.00046027,21]
[309893676,1704211839909,-644.39,0.00046027,21]
[309893678,1704211839919,-500.0,0.00046027,21]
[309893680,1704211839929,-500.0,0.00046027,21]
[309893682,1704211839940,-500.0,0.00046027,21]
[309893685,1704211839950,-500.0,0.00046027,21]
[309893687,1704211839960,-500.0,0.00046027,21]
[309893690,1704211839971,-500.0,0.00046027,21]
[309893692,1704211839981,-500.0,0.00046027,21]
[309893694,1704211839992,-500.0,0.00046027,21]
[309893696,1704211840004,-500.0,0.00046027,21]
[309893698,1704211840014,-4149.1,0.00046027,21]
[309893700,1704211840025,-4149.1,0.00046027,21]
[309893703,1704211840036,-4149.1,0.00046027,21]
[309893705,1704211840048,-4149.1,0.00046027,21]
[309893707,1704211840060,-500.0,0.00046027,21]
[309893709,1704211840070,-563.9005732,0.00046027,21]
[309893711,1704211840080,-500.0,0.00046027,21]
[309893713,1704211840090,-500.0,0.00046027,21]
[309893715,1704211840099,-551.64755619,0.00046027,21]
[309893717,1704211840109,-500.0,0.00046027,21]
[309893719,1704211840119,-500.0,0.00046027,21]
[309893721,1704211840129,-500.0,0.00046027,21]
[309893723,1704211840138,-1013.56,0.00046027,21]
[309893725,1704211840148,-1013.56,0.00046027,21]
[309893727,1704211840157,-1013.56,0.00046027,21]
[309893729,1704211840168,-500.0,0.00046027,21]
[309893731,1704211840178,-506.9394049,0.00046027,21]
[309893733,1704211840189,-500.0,0.00046027,21]
[309893736,1704211840199,-500.0,0.00046027,21]
[309893738,1704211840210,-500.0,0.00046027,21]
[309893740,1704211840219,-500.0,0.00046027,21]
[309893742,1704211840229,-500.0,0.00046027,21]
[309893744,1704211840240,-500.0,0.00046027,21]
[309893746,1704211840250,-500.0,0.00046027,21]
[309893748,1704211840260,-500.0,0.00046027,21]
[309893750,1704211840270,-257.21470884,0.00046027,21]
[309893752,1704211840280,-1354.69,0.00046027,21]
[309893754,1704211840290,-1354.69,0.00046027,21]
[309893756,1704211840300,-1354.69,0.00046027,21]
[309893758,1704211840310,-1634.87,0.00046027,2]
[309893760,1704211840320,-1354.69,0.00046027,21]
[309893762,1704211840330,-1634.87,0.00046027,2]
[309893764,1704211840340,-1634.87,0.00046027,2]
[309893778,1704211840456,-1634.87,0.00046027,2]
[309893780,1704211840467,-500.0,0.00046027,21]
[309893782,1704211840476,-500.0,0.00046027,21]
[309893784,1704211840486,-2885.68,0.00046027,21]
[309893786,1704211840495,-2885.68,0.00046027,21]
[309893788,1704211840504,-500.0,0.00046027,21]
[309893790,1704211840513,-10050.00727004,0.0004635,2]
[309893791,1704211840523,-2000.0,0.000464,40]
[309893794,1704211840532,-2000.0,0.0004641,40]
[309893797,1704211840542,-715.8377452,0.00046413,15]
[309893800,1704211840551,-565.65563577,0.00046413,4]
[309893803,1704211840560,-4149.1,0.00046419,21]
[309893806,1704211840570,-1634.87,0.00046419,2]
[309893809,1704211840579,-2000.0,0.0004642,41]
[309893811,1704211840588,-1354.69,0.0004642,21]
[309893814,1704211840597,-521.41364118,0.00046421,21]
[309893817,1704211840606,-500.0,0.00046421,21]
[309893820,1704211840616,-500.0,0.00046421,21]
[309893822,1704211840626,-500.0,0.00046421,21]
[309893824,1704211840635,-500.0,0.00046421,21]
[309893826,1704211840644,-500.0,0.00046421,21]
[309893828,1704211840654,-500.0,0.00046421,21]
[309893830,1704211840666,-186.32637429,0.00046421,21]
[309893832,1704211840675,-305.60491592,0.00046421,21]
[309893834,1704211840684,-314.44572783,0.00046421,21]
[309893836,1704211840693,-500.0,0.00046421,21]
[309893838,1704211840702,-2422.96,0.00046421,21]
[309893840,1704211840711,-4352.29,0.00046421,21]
[309893841,1704211840721,-611.03,0.00046421,21]
[309893843,1704211840730,-500.0,0.00046421,21]
[309893845,1704211840740,-500.0,0.00046421,21]
[309893847,1704211840749,-500.0,0.00046421,21]
[309893849,1704211840758,-1735.16,0.00046421,21]
[309893851,1704211840767,-500.0,0.00046421,21]
[309893852,1704211840777,-500.0,0.00046421,21]
[309893854,1704211840786,-500.0,0.00046421,21]
[309893856,1704211840795,-500.0,0.00046421,21]
[309893857,1704211840804,-644.39,0.00046421,21]
[309893859,1704211840813,-644.39,0.00046421,21]
[309893861,1704211840822,-500.0,0.00046421,21]
[309893862,1704211840832,-500.0,0.00046421,21]
[309893864,1704211840842,-500.0,0.00046421,21]
[309893865,1704211840851,-4149.1,0.00046421,21]
[309893867,1704211840860,-1013.56,0.00046421,21]
[309893869,1704211840871,-500.0,0.00046421,21]
[309893871,1704211840880,-500.0,0.00046421,21]
[309893873,1704211840889,-500.0,0.00046421,21]
[309893875,1704211840898,-500.0,0.00046421,21]
[309893877,1704211840907,-1354.69,0.00046421,21]
[309893879,1704211840917,-1634.87,0.00046421,2]
[309893881,1704211840926,-2885.68,0.00046421,21]
[309893883,1704211840936,-2885.68,0.00046421,21]
[309893885,1704211840945,-4149.1,0.00046429,21]
[309893887,1704211840956,-1634.87,0.00046429,2]
[309893889,1704211840965,-2000.0,0.0004643,41]
[309893891,1704211840974,-1074.36124576,0.00046437,2]
[309893893,1704211840983,-2000.0,0.0004644,41]
[309893894,1704211840992,-611.03,0.00046449,21]
[309893897,1704211841002,-500.0,0.00046449,21]
[309893899,1704211841011,-500.0,0.00046449,21]
[309893901,1704211841021,-1735.16,0.00046449,21]
[309893902,1704211841031,-390.37834772,0.00046449,21]
[309893904,1704211841040,-1013.56,0.00046449,21]
[309893907,1704211841050,-500.0,0.00046449,21]
[309893909,1704211841060,-2475.23241513,0.0004645,2]
[309893910,1704211841069,-900.01480962,0.0004645,2]
[309893912,1704211841079,-7580.59499125,0.0004645,4]
[309893914,1704211841089,-984.02539987,0.0004645,2]
[309893916,1704211841098,-243.99091742,0.0004645,4]
[309893918,1704211841107,-2000.0,0.0004645,41]
[309893920,1704211841118,-4149.1,0.00046454,21]
[309893922,1704211841128,-1354.69,0.00046454,21]
[309893924,1704211841138,-1634.87,0.00046454,2]
[309893926,1704211841147,-154.84515485,0.00046454,4]
[309893928,1704211841157,-1037.2606634,0.00046454,4]
[309893930,1704211841166,-154.84515485,0.00046454,4]
[309893932,1704211841175,-899.8529685,0.00046454,4]
[309893934,1704211841184,-230.06161897,0.00046454,4]
[309893936,1704211841193,-154.84515485,0.00046454,4]
[309893938,1704211841202,-460.05342322,0.00046454,20]
[309893940,1704211841211,-154.84515485,0.00046454,4]
[309893942,1704211841220,-237.67865572,0.00046454,4]
[309893944,1704211841228,-154.84515485,0.00046455,2]
[309893945,1704211841238,-154.84515485,0.00046455,4]
[309893948,1704211841247,-260.47439741,0.00046455,4]
[309893949,1704211841257,-319.04703931,0.00046455,21]
[309893951,1704211841266,-500.0,0.00046455,21]
[309893953,1704211841275,-500.0,0.00046455,21]
[309893955,1704211841285,-500.0,0.00046455,21]
[309893957,1704211841295,-2422.96,0.00046455,21]
[309893959,1704211841304,-4352.29,0.00046455,21]
[309893961,1704211841314,-500.0,0.00046455,21]
[309893963,1704211841323,-500.0,0.00046456,21]
[309893965,1704211841333,-500.0,0.00046456,21]
[309893966,1704211841342,-500.0,0.00046456,21]
[309893968,1704211841352,-500.0,0.00046456,21]
[309893970,1704211841363,-500.0,0.00046456,21]
[309893971,1704211841373,-500.0,0.00046456,21]
[309893973,1704211841383,-342.91491582,0.00046456,21]
[309893975,1704211841392,-500.0,0.00046456,21]
[309893977,1704211841401,-500.0,0.00046456,21]
[309893978,1704211841411,-500.0,0.00046456,21]
[309893980,1704211841420,-500.0,0.00046456,21]
[309893982,1704211841429,-500.0,0.00046456,21]
[309893983,1704211841439,-500.0,0.00046456,21]
[309893985,1704211841448,-500.0,0.00046456,21]
[309893987,1704211841457,-500.0,0.00046456,21]
[309893989,1704211841468,-500.0,0.00046456,21]
[309893991,1704211841477,-399.41888464,0.00046456,21]
[309893993,1704211841486,-500.0,0.00046456,21]
[309893995,1704211841495,-500.0,0.00046456,21]
[309893996,1704211841505,-329.72612539,0.00046456,21]
[309893998,1704211841514,-500.0,0.00046456,21]
[309894000,1704211841523,-500.0,0.00046456,21]
[309894002,1704211841532,-500.0,0.00046456,21]
[309894004,1704211841541,-500.0,0.00046456,21]
[309894005,1704211841550,-500.0,0.00046456,21]
[309894007,1704211841559,-500.0,0.00046456,21]
[309894009,1704211841568,-500.0,0.00046456,21]
[309894011,1704211841578,-500.0,0.00046456,21]
[309894013,1704211841588,-500.0,0.00046456,21]
[309894014,1704211841597,-500.0,0.00046456,21]
[309894016,1704211841606,-500.0,0.00046456,21]
[309894018,1704211841616,-237.7519823,0.00046456,21]
[309894020,1704211841625,-611.03,0.00046459,21]
[309894022,1704211841634,-500.0,0.00046459,21]
[309894023,1704211841643,-500.0,0.00046459,21]
[309894025,1704211841653,-1735.16,0.00046459,21]
[309894027,1704211841665,-4149.1,0.00046459,21]
[309894029,1704211841674,-1013.56,0.00046459,21]
[309894031,1704211841682,-500.0,0.00046459,21]
[309894033,1704211841692,-1354.69,0.00046459,21]
[309894034,1704211841701,-1634.87,0.00046459,2]
[309894036,1704211841709,-7268.29373,0.0004646,4]
[309894038,1704211841719,-155.04608401,0.0004646,7]
[309894040,1704211841728,-154.8451549,0.0004646,10]
[309894042,1704211841737,-870.00751872,0.0004646,4]
[309894044,1704211841746,-1731.39134117,0.0004646,4]
[309894045,1704211841756,-622.82262588,0.0004646,2]
[309894047,1704211841766,-2000.0,0.0004646,41]
[309894049,1704211841775,-611.03,0.0004646,21]
[309894051,1704211841784,-500.0,0.0004646,21]
[309894053,1704211841794,-500.0,0.0004646,21]
[309894055,1704211841803,-1735.16,0.0004646,21]
[309894057,1704211841811,-4149.1,0.0004646,21]
[309894058,1704211841820,-4149.1,0.0004646,21]
[309894060,1704211841830,-4149.1,0.0004646,21]
[309894062,1704211841839,-4149.1,0.0004646,21]
[309894064,1704211841848,-4149.1,0.0004646,21]
[309894065,1704211841856,-4149.1,0.0004646,21]
[309894067,1704211841866,-4149.1,0.0004646,21]
[309894069,1704211841875,-4149.1,0.0004646,21]
[309894071,1704211841885,-4149.1,0.0004646,21]
[309894073,1704211841894,-4149.1,0.0004646,21]
[309894075,1704211841903,-1013.56,0.0004646,21]
[309894076,1704211841912,-500.0,0.0004646,21]
[309894078,1704211841921,-1354.69,0.0004646,21]
[309894080,1704211841930,-1354.69,0.0004646,21]
[309894082,1704211841939,-1354.69,0.0004646,21]
[309894083,1704211841948,-1354.69,0.0004646,21]
[309894085,1704211841957,-1354.69,0.0004646,21]
[309894087,1704211841967,-1634.87,0.0004646,2]
[309894089,1704211841977,-1354.69,0.0004646,21]
[309894091,1704211841987,-1634.87,0.0004646,2]
[309894093,1704211841996,-1354.69,0.0004646,21]
[309894094,1704211842005,-1634.87,0.0004646,2]
[309894096,1704211842014,-1354.69,0.0004646,21]
[309894098,1704211842023,-1354.69,0.0004646,21]
[309894100,1704211842032,-1634.87,0.0004646,2]
[309894102,1704211842041,-1634.87,0.0004646,2]
[309894103,1704211842050,-1634.87,0.0004646,2]
[309894105,1704211842059,-1634.87,0.0004646,2]
[309894107,1704211842068,-1634.87,0.0004646,2]
[309894109,1704211842077,-1634.87,0.0004646,2]
[309894111,1704211842086,-1634.87,0.0004646,2]
[309894112,1704211842096,-6585.71829114,0.00046461,4]
[309894114,1704211842105,-405.26992582,0.00046461,21]
[309894116,1704211842114,-500.0,0.00046461,21]
[309894118,1704211842124,-500.0,0.00046461,21]
[309894120,1704211842133,-500.0,0.00046461,21]
[309894122,1704211842142,-500.0,0.00046461,21]
[309894123,1704211842151,-500.0,0.00046461,21]
[309894125,1704211842160,-500.0,0.00046461,21]
[309894127,1704211842170,-500.0,0.00046461,21]
[309894129,1704211842180,-500.0,0.00046461,21]
[309894131,1704211842189,-500.0,0.00046461,21]
[309894133,1704211842198,-500.0,0.00046461,21]
[309894135,1704211842207,-500.0,0.00046461,21]
[309894137,1704211842216,-500.0,0.00046461,21]
[309894138,1704211842226,-500.0,0.00046461,21]
[309894140,1704211842235,-500.0,0.00046461,21]
[309894142,1704211842244,-496.00062819,0.00046461,21]
[309894144,1704211842254,-2422.96,0.00046461,21]
[309894146,1704211842263,-2422.96,0.00046461,21]
[309894147,1704211842272,-2422.96,0.00046461,21]
[309894149,1704211842282,-2422.96,0.00046461,21]
[309894151,1704211842291,-2422.96,0.00046461,21]
[309894153,1704211842300,-2422.96,0.00046461,21]
[309894155,1704211842310,-2422.96,0.00046461,21]
[309894156,1704211842319,-2422.96,0.00046461,21]
[309894158,1704211842329,-2422.96,0.00046461,21]
[309894160,1704211842339,-2422.96,0.00046461,21]
[309894162,1704211842348,-2422.96,0.00046461,21]
[309894164,1704211842357,-2422.96,0.00046461,21]
[309894166,1704211842367,-2422.96,0.00046461,21]
[309894168,1704211842377,-2422.96,0.00046461,21]
[309894170,1704211842386,-2422.96,0.00046461,21]
[309894172,1704211842396,-2422.96,0.00046461,21]
[309894173,1704211842405,-2422.96,0.00046461,21]
[309894175,1704211842415,-2422.96,0.00046461,21]
[309894177,1704211842424,-2422.96,0.00046461,21]
[309894179,1704211842434,-2422.99714055,0.00046461,21]
[309894181,1704211842443,-4352.29,0.00046461,21]
[309894183,1704211842452,-4352.29,0.00046461,21]
[309894185,1704211842462,-4352.29,0.00046461,21]
[309894187,1704211842472,-4352.29,0.00046461,21]
[309894188,1704211842480,-4352.29,0.00046461,21]
[309894190,1704211842491,-4352.29,0.00046461,21]
[309894191,1704211842500,-4352.29,0.00046461,21]
[309894193,1704211842509,-4352.29,0.00046461,21]
[309894194,1704211842518,-4352.29,0.00046461,21]
[309894196,1704211842527,-4352.29,0.00046461,21]
[309894198,1704211842536,-4352.29,0.00046461,21]
[309894200,1704211842545,-4352.29,0.00046461,21]
[309894202,1704211842555,-4352.29,0.00046461,21]
[309894204,1704211842565,-4352.29,0.00046461,21]
[309894206,1704211842574,-4352.29,0.00046461,21]
[309894207,1704211842583,-4352.29,0.00046461,21]
[309894209,1704211842592,-4352.29,0.00046461,21]
[309894211,1704211842602,-4352.29,0.00046461,21]
[309894213,1704211842611,-4352.29,0.00046461,21]
[309894215,1704211842621,-4352.44086249,0.00046461,21]
[309894217,1704211842630,-611.03,0.00046461,21]
[309894218,1704211842639,-611.03,0.00046461,21]
[309894220,1704211842648,-611.03,0.00046461,21]
[309894222,1704211842658,-611.03,0.00046461,21]
[309894228,1704211842671,-611.03,0.00046461,21]
[309894230,1704211842747,-611.03,0.00046461,21]
[309894231,1704211842756,-611.03,0.00046461,21]
[309894233,1704211842765,-611.03,0.00046461,21]
[309894235,1704211842774,-611.03,0.00046461,21]
[309894237,1704211842784,-611.03,0.00046461,21]
[309894239,1704211842793,-611.03,0.00046461,21]
[309894241,1704211842802,-611.03,0.00046461,21]
[309894242,1704211842811,-611.03,0.00046461,21]
[309894244,1704211842821,-611.03,0.00046461,21]
[309894246,1704211842830,-611.03,0.00046461,21]
[309894248,1704211842839,-611.03,0.00046461,21]
[309894250,1704211842848,-611.06465963,0.00046461,21]
[309894252,1704211842857,-500.0,0.00046461,21]
[309894254,1704211842866,-500.0,0.00046461,21]
[309894255,1704211842875,-500.0,0.00046461,21]
[309894257,1704211842885,-500.0,0.00046461,21]
[309894259,1704211842894,-500.0,0.00046461,21]
[309894261,1704211842903,-500.0,0.00046461,21]
[309894263,1704211842913,-500.0,0.00046461,21]
[309894265,1704211842922,-500.0,0.00046461,21]
[309894267,1704211842931,-500.0,0.00046461,21]
[309894270,1704211842940,-543.51072722,0.00046461,21]
[309894272,1704211842949,-500.0,0.00046461,21]
[309894275,1704211842958,-500.0,0.00046461,21]
[309894278,1704211842967,-500.0,0.00046461,21]
[309894280,1704211842976,-349.41406624,0.00046461,21]
[309894282,1704211842986,-1735.16,0.00046461,21]
[309894284,1704211842995,-1735.16,0.00046461,21]
[309894287,1704211843003,-1735.16,0.00046461,21]
[309894289,1704211843013,-1735.16,0.00046461,21]
[309894292,1704211843022,-1735.16,0.00046461,21]
[309894295,1704211843031,-1735.16,0.00046461,21]
[309894298,1704211843040,-1735.16,0.00046461,21]
[309894301,1704211843049,-1735.16,0.00046461,21]
[309894303,1704211843059,-1735.16,0.00046461,21]
[309894306,1704211843068,-1735.16,0.00046461,21]
[309894309,1704211843077,-1735.16,0.00046461,21]
[309894313,1704211843087,-1735.16,0.00046461,21]
[309894317,1704211843096,-1735.16,0.00046461,21]
[309894319,1704211843105,-1735.16,0.00046461,21]
[309894322,1704211843114,-1735.16,0.00046461,21]
[309894325,1704211843124,-1735.16,0.00046461,21]
[309894327,1704211843133,-1735.32526883,0.00046461,21]
[309894329,1704211843142,-500.0,0.00046461,21]
[309894331,1704211843151,-500.0,0.00046461,21]
[309894333,1704211843161,-500.0,0.00046461,21]
[309894335,1704211843170,-221.5216051,0.00046461,21]
[309894336,1704211843178,-500.0,0.00046461,21]
[309894338,1704211843187,-500.0,0.00046461,21]
[309894340,1704211843197,-500.0,0.00046461,21]
[309894342,1704211843206,-500.0,0.00046461,21]
[309894344,1704211843215,-500.0,0.00046461,21]
[309894346,1704211843224,-500.0,0.00046461,21]
[309894348,1704211843233,-183.78444382,0.00046461,21]
[309894350,1704211843242,-644.39,0.00046461,21]
[309894352,1704211843251,-644.39,0.00046461,21]
[309894353,1704211843261,-644.39,0.00046461,21]
[309894355,1704211843270,-644.39,0.00046461,21]
[309894357,1704211843280,-644.39,0.00046461,21]
[309894359,1704211843290,-644.39,0.00046461,21]
[309894361,1704211843299,-644.39,0.00046461,21]
[309894363,1704211843309,-644.39,0.00046461,21]
[309894365,1704211843319,-644.39,0.00046461,21]
[309894367,1704211843328,-644.39,0.00046461,21]
[309894369,1704211843337,-644.39,0.00046461,21]
[309894370,1704211843346,-644.39,0.00046461,21]
[309894372,1704211843355,-644.39,0.00046461,21]
[309894374,1704211843364,-644.39,0.00046461,21]
[309894376,1704211843374,-644.39,0.00046461,21]
[309894378,1704211843383,-644.39,0.00046461,21]
[309894380,1704211843392,-644.39,0.00046461,21]
[309894382,1704211843401,-644.39,0.00046461,21]
[309894384,1704211843411,-644.39,0.00046461,21]
[309894386,1704211843419,-644.43370189,0.00046461,21]
[309894387,1704211843428,-500.0,0.00046461,21]
[309894389,1704211843438,-500.0,0.00046461,21]
[309894391,1704211843446,-500.0,0.00046461,21]
[309894393,1704211843456,-500.0,0.00046461,21]
[309894395,1704211843465,-500.0,0.00046461,21]
[309894397,1704211843474,-500.0,0.00046461,21]